[Event "Titled Tuesday Blitz April 25 Early 2023"]
[White "Tarnowska, Aleksandra"]
[Black "Matveeva, Olga"]
[WhiteFideId "1180967"]
[BlackFideId "24107018"]
[WhiteElo "1776"]
[BlackElo "2056"]
[Result "0-1"]
[Round "08"]
[TimeControl "180+2"]
[Date "2023.04.25"]
[WhiteClock "0:00:04"]
[BlackClock "0:00:33"]

1. e4 {[%clk 0:03:00]}  e6 {[%clk 0:03:00]} 2. d4 {[%clk 0:03:00]}  d5 {[%clk 0:03:00]} 3. Nd2 {[%clk 0:03:01]}  c5 {[%clk 0:02:59]} 4. exd5 {[%clk 0:02:58]}  Qxd5 {[%clk 0:03:00]} 5. Ngf3 {[%clk 0:02:33]}  cxd4 {[%clk 0:02:59]} 6. Bc4 {[%clk 0:02:31]}  Qd6 {[%clk 0:03:00]} 7. O-O {[%clk 0:02:00]}  Nf6 {[%clk 0:03:00]} 8. Nb3 {[%clk 0:01:56]}  Nc6 {[%clk 0:03:00]} 9. Nbxd4 {[%clk 0:01:52]}  Nxd4 {[%clk 0:03:01]} 10. Qxd4 {[%clk 0:01:52]}  Qxd4 {[%clk 0:03:01]} 11. Nxd4 {[%clk 0:01:53]}  Bc5 {[%clk 0:03:01]} 12. Nb5 {[%clk 0:01:49]}  O-O {[%clk 0:02:45]} 13. c3 {[%clk 0:01:12]}  a6 {[%clk 0:02:44]} 14. Nc7 {[%clk 0:01:09]}  Ra7 {[%clk 0:02:30]} 15. Rd1 {[%clk 0:00:47]}  b5 {[%clk 0:02:21]} 16. Nxb5 {[%clk 0:00:41]}  axb5 {[%clk 0:02:21]} 17. Bxb5 {[%clk 0:00:42]}  Ne4 {[%clk 0:02:17]} 18. Rf1 {[%clk 0:00:39]}  Rd8 {[%clk 0:02:07]} 19. Bc6 {[%clk 0:00:39]}  Nxf2 {[%clk 0:02:04]} 20. Bg5 {[%clk 0:00:29]}  Nh3+ {[%clk 0:01:53]} 21. Kh1 {[%clk 0:00:29]}  Nxg5 {[%clk 0:01:53]} 22. b4 {[%clk 0:00:27]}  Be3 {[%clk 0:01:42]} 23. a4 {[%clk 0:00:26]}  Bb7 {[%clk 0:01:39]} 24. Bxb7 {[%clk 0:00:20]}  Rxb7 {[%clk 0:01:40]} 25. a5 {[%clk 0:00:17]}  Ne4 {[%clk 0:01:24]} 26. a6 {[%clk 0:00:14]}  Rb6 {[%clk 0:01:05]} 27. a7 {[%clk 0:00:12]}  Ra8 {[%clk 0:01:03]} 28. Rf3 {[%clk 0:00:11]}  Nf2+ {[%clk 0:00:55]} 29. Kg1 {[%clk 0:00:11]}  Ng4+ {[%clk 0:00:55]} 30. Kh1 {[%clk 0:00:10]}  Rb7 {[%clk 0:00:44]} 31. h3 {[%clk 0:00:08]}  Rbxa7 {[%clk 0:00:40]} 32. Rxa7 {[%clk 0:00:06]}  Rxa7 {[%clk 0:00:41]} 33. hxg4 {[%clk 0:00:06]}  Bb6 {[%clk 0:00:39]} 34. c4 {[%clk 0:00:03]}  Ra1+ {[%clk 0:00:38]} 35. Kh2 {[%clk 0:00:04]}  Rb1 {[%clk 0:00:38]} 36. b5 {[%clk 0:00:03]}  Kf8 {[%clk 0:00:37]} 37. g3 {[%clk 0:00:03]}  Ke7 {[%clk 0:00:37]} 38. Rd3 {[%clk 0:00:04]}  Bc5 {[%clk 0:00:36]} 39. Kg2 {[%clk 0:00:04]}  Rb2+ {[%clk 0:00:36]} 40. Kf3 {[%clk 0:00:04]}  f5 {[%clk 0:00:34]} 41. gxf5 {[%clk 0:00:04]}  exf5 {[%clk 0:00:35]} 42. Rd5 {[%clk 0:00:04]}  Rf2# {[%clk 0:00:33]} 0-1


[Site "https://www.chess.com"]

[Event "Titled Tuesday Blitz April 25 Early 2023"]
[White "Torres Dominguez, David"]
[Black "Tarasova, Viktoriya"]
[WhiteFideId "2220857"]
[BlackFideId "4175840"]
[WhiteElo "1999"]
[BlackElo "2182"]
[Result "0-1"]
[Round "08"]
[TimeControl "180+2"]
[Date "2023.04.25"]
[WhiteClock "0:00:10"]
[BlackClock "0:00:08"]

1. e4 {[%clk 0:03:00]}  c5 {[%clk 0:02:55]} 2. Nc3 {[%clk 0:03:00]}  e6 {[%clk 0:02:53]} 3. Nf3 {[%clk 0:03:00]}  Nc6 {[%clk 0:02:51]} 4. d4 {[%clk 0:02:59]}  cxd4 {[%clk 0:02:51]} 5. Nxd4 {[%clk 0:02:58]}  Qc7 {[%clk 0:02:52]} 6. Nxc6 {[%clk 0:02:57]}  bxc6 {[%clk 0:02:51]} 7. Bd3 {[%clk 0:02:55]}  d5 {[%clk 0:02:50]} 8. O-O {[%clk 0:02:53]}  Nf6 {[%clk 0:02:50]} 9. Re1 {[%clk 0:02:51]}  Bd6 {[%clk 0:02:46]} 10. exd5 {[%clk 0:02:40]}  Nxd5 {[%clk 0:02:32]} 11. Ne4 {[%clk 0:02:29]}  Bxh2+ {[%clk 0:02:30]} 12. Kh1 {[%clk 0:02:19]}  Bf4 {[%clk 0:02:28]} 13. c4 {[%clk 0:02:13]}  Ne7 {[%clk 0:02:18]} 14. Bxf4 {[%clk 0:02:06]}  Qxf4 {[%clk 0:02:17]} 15. g3 {[%clk 0:02:07]}  Qc7 {[%clk 0:02:13]} 16. Qg4 {[%clk 0:01:58]}  Ng6 {[%clk 0:02:04]} 17. Qh5 {[%clk 0:01:52]}  h6 {[%clk 0:01:26]} 18. Qc5 {[%clk 0:01:32]}  Qb6 {[%clk 0:00:50]} 19. Nd6+ {[%clk 0:01:22]}  Kf8 {[%clk 0:00:34]} 20. Qxb6 {[%clk 0:01:06]}  axb6 {[%clk 0:00:33]} 21. Nxc8 {[%clk 0:01:05]}  Rxc8 {[%clk 0:00:32]} 22. Bxg6 {[%clk 0:00:59]}  fxg6 {[%clk 0:00:32]} 23. Rxe6 {[%clk 0:00:56]}  Kf7 {[%clk 0:00:32]} 24. Re3 {[%clk 0:00:50]}  Rhd8 {[%clk 0:00:30]} 25. Rae1 {[%clk 0:00:45]}  Rd2 {[%clk 0:00:25]} 26. R1e2 {[%clk 0:00:44]}  Rd4 {[%clk 0:00:22]} 27. b3 {[%clk 0:00:40]}  Rc7 {[%clk 0:00:22]} 28. Rf3+ {[%clk 0:00:38]}  Kg8 {[%clk 0:00:22]} 29. Re8+ {[%clk 0:00:36]}  Kh7 {[%clk 0:00:22]} 30. Rb8 {[%clk 0:00:31]}  Rd2 {[%clk 0:00:16]} 31. a4 {[%clk 0:00:25]}  b5 {[%clk 0:00:13]} 32. axb5 {[%clk 0:00:22]}  cxb5 {[%clk 0:00:14]} 33. Rxb5 {[%clk 0:00:23]}  g5 {[%clk 0:00:12]} 34. Rbf5 {[%clk 0:00:20]}  Re7 {[%clk 0:00:09]} 35. Kg2 {[%clk 0:00:19]}  Re1 {[%clk 0:00:09]} 36. Rf7 {[%clk 0:00:18]}  g4 {[%clk 0:00:08]} 37. R3f4 {[%clk 0:00:17]}  h5 {[%clk 0:00:08]} 38. Rb7 {[%clk 0:00:16]}  Rdd1 {[%clk 0:00:09]} 39. f3 {[%clk 0:00:10]}  Rd2# {[%clk 0:00:08]} 0-1


[Site "https://www.chess.com"]

[Event "Titled Tuesday Blitz April 25 Early 2023"]
[White "Albuquerque Junior,Wellington S."]
[Black "Molenda, Marcin"]
[WhiteFideId "2151480"]
[BlackFideId "1173065"]
[WhiteElo "2109"]
[BlackElo "2286"]
[Result "0-1"]
[Round "08"]
[TimeControl "180+2"]
[Date "2023.04.25"]
[WhiteClock "0:00:16"]
[BlackClock "0:01:53"]

1. c4 {[%clk 0:02:57]}  Nf6 {[%clk 0:02:56]} 2. g3 {[%clk 0:02:57]}  g6 {[%clk 0:02:49]} 3. Bg2 {[%clk 0:02:57]}  Bg7 {[%clk 0:02:50]} 4. Nc3 {[%clk 0:02:57]}  O-O {[%clk 0:02:50]} 5. e4 {[%clk 0:02:58]}  e5 {[%clk 0:02:50]} 6. d3 {[%clk 0:02:58]}  Nc6 {[%clk 0:02:49]} 7. Nge2 {[%clk 0:02:59]}  d6 {[%clk 0:02:46]} 8. O-O {[%clk 0:02:59]}  Nd7 {[%clk 0:02:47]} 9. Be3 {[%clk 0:02:55]}  Nc5 {[%clk 0:02:47]} 10. d4 {[%clk 0:02:53]}  exd4 {[%clk 0:02:44]} 11. Nxd4 {[%clk 0:02:54]}  Ne6 {[%clk 0:02:39]} 12. Nde2 {[%clk 0:02:41]}  Rb8 {[%clk 0:02:34]} 13. Qd2 {[%clk 0:02:34]}  Re8 {[%clk 0:02:31]} 14. Rad1 {[%clk 0:02:24]}  a6 {[%clk 0:02:25]} 15. f4 {[%clk 0:02:07]}  b5 {[%clk 0:02:17]} 16. e5 {[%clk 0:01:49]}  Na5 {[%clk 0:02:08]} 17. Ba7 {[%clk 0:01:03]}  Nxc4 {[%clk 0:02:04]} 18. Qc1 {[%clk 0:01:04]}  Rb7 {[%clk 0:02:01]} 19. Bxb7 {[%clk 0:00:42]}  Bxb7 {[%clk 0:02:02]} 20. b3 {[%clk 0:00:41]}  Qa8 {[%clk 0:02:02]} 21. Bf2 {[%clk 0:00:36]}  Na5 {[%clk 0:01:56]} 22. f5 {[%clk 0:00:16]}  Bh1 {[%clk 0:01:53]} 23. Nf4 {[%clk 0:00:16]}  Nxf4 {[%clk 0:01:53]} 0-1


[Site "https://www.chess.com"]

[Event "Titled Tuesday Blitz April 25 Early 2023"]
[White "Womacka, Mathias"]
[Black "Fierz, Martin"]
[WhiteFideId "4611390"]
[BlackFideId "1302132"]
[WhiteElo "2377"]
[BlackElo "2277"]
[Result "1/2-1/2"]
[Round "08"]
[TimeControl "180+2"]
[Date "2023.04.25"]
[WhiteClock "0:00:31"]
[BlackClock "0:01:15"]

1. e4 {[%clk 0:03:00]}  c5 {[%clk 0:02:59]} 2. Nf3 {[%clk 0:03:00]}  e6 {[%clk 0:02:59]} 3. d4 {[%clk 0:03:00]}  cxd4 {[%clk 0:03:00]} 4. Nxd4 {[%clk 0:03:01]}  Nc6 {[%clk 0:03:00]} 5. Nc3 {[%clk 0:03:00]}  Qc7 {[%clk 0:02:58]} 6. Be3 {[%clk 0:02:55]}  a6 {[%clk 0:02:57]} 7. Bd3 {[%clk 0:02:55]}  Nf6 {[%clk 0:02:55]} 8. O-O {[%clk 0:02:53]}  Ne5 {[%clk 0:02:55]} 9. h3 {[%clk 0:02:53]}  Nxd3 {[%clk 0:02:52]} 10. cxd3 {[%clk 0:02:50]}  d6 {[%clk 0:02:53]} 11. Rc1 {[%clk 0:02:48]}  Qd7 {[%clk 0:02:48]} 12. Na4 {[%clk 0:02:29]}  Rb8 {[%clk 0:02:40]} 13. Nb6 {[%clk 0:02:27]}  Qd8 {[%clk 0:02:40]} 14. Nxc8 {[%clk 0:02:18]}  Rxc8 {[%clk 0:02:39]} 15. Qa4+ {[%clk 0:02:19]}  Nd7 {[%clk 0:02:31]} 16. Rxc8 {[%clk 0:02:17]}  Qxc8 {[%clk 0:02:30]} 17. Rc1 {[%clk 0:02:17]}  Qb8 {[%clk 0:02:22]} 18. Nb3 {[%clk 0:02:04]}  Be7 {[%clk 0:02:17]} 19. Bb6 {[%clk 0:02:03]}  Bd8 {[%clk 0:02:15]} 20. Bxd8 {[%clk 0:01:56]}  Qxd8 {[%clk 0:02:11]} 21. Na5 {[%clk 0:01:56]}  b5 {[%clk 0:02:07]} 22. Qb4 {[%clk 0:01:51]}  O-O {[%clk 0:01:58]} 23. Qxd6 {[%clk 0:01:49]}  Qxa5 {[%clk 0:01:58]} 24. Qxd7 {[%clk 0:01:49]}  Qxa2 {[%clk 0:01:58]} 25. Rc8 {[%clk 0:01:41]}  g6 {[%clk 0:01:57]} 26. Rxf8+ {[%clk 0:01:35]}  Kxf8 {[%clk 0:01:57]} 27. Qd6+ {[%clk 0:01:28]}  Kg8 {[%clk 0:01:54]} 28. b4 {[%clk 0:01:28]}  Qe2 {[%clk 0:01:39]} 29. g3 {[%clk 0:01:20]}  h5 {[%clk 0:01:29]} 30. h4 {[%clk 0:01:17]}  Kg7 {[%clk 0:01:17]} 31. Kg2 {[%clk 0:01:17]}  Kg8 {[%clk 0:01:16]} 32. Qd8+ {[%clk 0:00:42]}  Kg7 {[%clk 0:01:15]} 33. Qd4+ {[%clk 0:00:41]}  Kg8 {[%clk 0:01:14]} 34. Qd8+ {[%clk 0:00:30]}  Kg7 {[%clk 0:01:14]} 35. Qd4+ {[%clk 0:00:31]}  Kg8 {[%clk 0:01:15]} 36. Qd8+ {[%clk 0:00:31]} 1/2-1/2


[Site "https://www.chess.com"]

[Event "Titled Tuesday Blitz April 25 Early 2023"]
[White "Bekkedahl, Zachary"]
[Black "Shimelkov, Vasiliy"]
[WhiteFideId "2069156"]
[BlackFideId "13701630"]
[WhiteElo "1943"]
[BlackElo "2073"]
[Result "0-1"]
[Round "08"]
[TimeControl "180+2"]
[Date "2023.04.25"]
[WhiteClock "0:00:45"]
[BlackClock "0:01:49"]

1. e4 {[%clk 0:03:00]}  c5 {[%clk 0:02:59]} 2. Nf3 {[%clk 0:03:00]}  Nc6 {[%clk 0:02:59]} 3. Bb5 {[%clk 0:03:00]}  e6 {[%clk 0:02:58]} 4. O-O {[%clk 0:02:59]}  Nge7 {[%clk 0:02:57]} 5. c3 {[%clk 0:02:56]}  a6 {[%clk 0:02:57]} 6. Ba4 {[%clk 0:02:56]}  b5 {[%clk 0:02:57]} 7. Bc2 {[%clk 0:02:56]}  Bb7 {[%clk 0:02:56]} 8. d4 {[%clk 0:02:56]}  cxd4 {[%clk 0:02:56]} 9. cxd4 {[%clk 0:02:57]}  d5 {[%clk 0:02:56]} 10. e5 {[%clk 0:02:54]}  Nc8 {[%clk 0:02:55]} 11. a3 {[%clk 0:02:52]}  Nb6 {[%clk 0:02:55]} 12. Nc3 {[%clk 0:02:50]}  Rc8 {[%clk 0:02:54]} 13. Bg5 {[%clk 0:02:47]}  Be7 {[%clk 0:02:53]} 14. Bxe7 {[%clk 0:02:46]}  Qxe7 {[%clk 0:02:53]} 15. Qd3 {[%clk 0:02:41]}  h6 {[%clk 0:02:50]} 16. Rac1 {[%clk 0:02:40]}  Nc4 {[%clk 0:02:45]} 17. Rb1 {[%clk 0:02:30]}  Na7 {[%clk 0:02:35]} 18. Nd2 {[%clk 0:02:21]}  Qc7 {[%clk 0:02:28]} 19. Nb3 {[%clk 0:02:18]}  Nxb2 {[%clk 0:02:25]} 20. Rxb2 {[%clk 0:02:08]}  Qxc3 {[%clk 0:02:25]} 21. Qxc3 {[%clk 0:02:05]}  Rxc3 {[%clk 0:02:24]} 22. Nc5 {[%clk 0:02:05]}  Bc8 {[%clk 0:02:21]} 23. a4 {[%clk 0:01:55]}  Nc6 {[%clk 0:02:18]} 24. axb5 {[%clk 0:01:52]}  axb5 {[%clk 0:02:17]} 25. Bd3 {[%clk 0:01:31]}  Nxd4 {[%clk 0:02:15]} 26. Bxb5+ {[%clk 0:01:31]}  Nxb5 {[%clk 0:02:14]} 27. Rxb5 {[%clk 0:01:32]}  O-O {[%clk 0:02:12]} 28. f4 {[%clk 0:01:18]}  d4 {[%clk 0:02:00]} 29. Rd1 {[%clk 0:01:10]}  Rd8 {[%clk 0:01:56]} 30. Rd2 {[%clk 0:01:11]}  Rd5 {[%clk 0:01:52]} 31. Ne4 {[%clk 0:00:47]}  Rc1+ {[%clk 0:01:50]} 32. Kf2 {[%clk 0:00:45]}  Rxb5 {[%clk 0:01:49]} 0-1


[Site "https://www.chess.com"]

[Event "Titled Tuesday Blitz April 25 Early 2023"]
[White "Dwilewicz, Katarzyna"]
[Black "Sarkar, Justin"]
[WhiteFideId "1148486"]
[BlackFideId "2010011"]
[WhiteElo "2065"]
[BlackElo "2189"]
[Result "0-1"]
[Round "08"]
[TimeControl "180+2"]
[Date "2023.04.25"]
[WhiteClock "0:00:16"]
[BlackClock "0:00:06"]

1. e4 {[%clk 0:02:53]}  c5 {[%clk 0:02:53]} 2. Nf3 {[%clk 0:02:52]}  d6 {[%clk 0:02:48]} 3. Bb5+ {[%clk 0:02:49]}  Nd7 {[%clk 0:02:46]} 4. O-O {[%clk 0:02:48]}  a6 {[%clk 0:02:43]} 5. Bxd7+ {[%clk 0:02:48]}  Bxd7 {[%clk 0:02:40]} 6. d4 {[%clk 0:02:49]}  cxd4 {[%clk 0:02:31]} 7. Qxd4 {[%clk 0:02:47]}  Nf6 {[%clk 0:02:06]} 8. c4 {[%clk 0:02:48]}  b5 {[%clk 0:01:48]} 9. cxb5 {[%clk 0:02:44]}  axb5 {[%clk 0:01:46]} 10. Nc3 {[%clk 0:02:43]}  e5 {[%clk 0:01:35]} 11. Qd3 {[%clk 0:02:39]}  b4 {[%clk 0:01:32]} 12. Nd5 {[%clk 0:02:34]}  Nxd5 {[%clk 0:01:32]} 13. Qxd5 {[%clk 0:02:33]}  Be7 {[%clk 0:01:29]} 14. Rd1 {[%clk 0:02:32]}  Ra5 {[%clk 0:01:16]} 15. Qb3 {[%clk 0:02:26]}  Ba4 {[%clk 0:01:10]} 16. Qd3 {[%clk 0:02:14]}  Bxd1 {[%clk 0:01:07]} 17. Qxd1 {[%clk 0:02:15]}  O-O {[%clk 0:01:06]} 18. Bd2 {[%clk 0:02:15]}  Rb5 {[%clk 0:00:59]} 19. Qe2 {[%clk 0:02:12]}  Qb6 {[%clk 0:00:55]} 20. Rc1 {[%clk 0:02:11]}  Rc5 {[%clk 0:00:49]} 21. Rd1 {[%clk 0:02:05]}  Qb5 {[%clk 0:00:45]} 22. Qe1 {[%clk 0:02:03]}  Rb8 {[%clk 0:00:40]} 23. Be3 {[%clk 0:01:53]}  Rc2 {[%clk 0:00:39]} 24. Rd5 {[%clk 0:01:53]}  Qc4 {[%clk 0:00:36]} 25. Qd1 {[%clk 0:01:34]}  Rxb2 {[%clk 0:00:28]} 26. h4 {[%clk 0:01:25]}  Qxe4 {[%clk 0:00:27]} 27. Ra5 {[%clk 0:01:18]}  Rb1 {[%clk 0:00:22]} 28. Bc1 {[%clk 0:01:14]}  Rc8 {[%clk 0:00:22]} 29. Kh2 {[%clk 0:01:06]}  Rbxc1 {[%clk 0:00:22]} 30. Qb3 {[%clk 0:01:06]}  Bxh4 {[%clk 0:00:16]} 31. Rb5 {[%clk 0:01:01]}  Bf6 {[%clk 0:00:12]} 32. Rxb4 {[%clk 0:01:01]}  Qc2 {[%clk 0:00:11]} 33. Qe3 {[%clk 0:00:57]}  e4 {[%clk 0:00:10]} 34. Rxe4 {[%clk 0:00:52]}  g6 {[%clk 0:00:09]} 35. a4 {[%clk 0:00:47]}  Kg7 {[%clk 0:00:09]} 36. a5 {[%clk 0:00:46]}  d5 {[%clk 0:00:09]} 37. Rf4 {[%clk 0:00:44]}  d4 {[%clk 0:00:08]} 38. Nxd4 {[%clk 0:00:34]}  Bxd4 {[%clk 0:00:08]} 39. Qxd4+ {[%clk 0:00:34]}  Kg8 {[%clk 0:00:07]} 40. a6 {[%clk 0:00:29]}  Qc7 {[%clk 0:00:06]} 41. g3 {[%clk 0:00:26]}  Rc4 {[%clk 0:00:06]} 42. Qe3 {[%clk 0:00:14]}  Rxf4 {[%clk 0:00:05]} 43. gxf4 {[%clk 0:00:15]}  Ra8 {[%clk 0:00:05]} 44. Qd3 {[%clk 0:00:13]}  Qa7 {[%clk 0:00:04]} 45. Kg2 {[%clk 0:00:12]}  Qxa6 {[%clk 0:00:04]} 46. Qd7 {[%clk 0:00:13]}  Rb8 {[%clk 0:00:04]} 47. f5 {[%clk 0:00:13]}  Qb7+ {[%clk 0:00:04]} 48. Qxb7 {[%clk 0:00:12]}  Rxb7 {[%clk 0:00:05]} 49. Kg3 {[%clk 0:00:13]}  gxf5 {[%clk 0:00:04]} 50. Kf4 {[%clk 0:00:13]}  Rb5 {[%clk 0:00:05]} 51. f3 {[%clk 0:00:13]}  Kg7 {[%clk 0:00:05]} 52. Kg3 {[%clk 0:00:13]}  Kf6 {[%clk 0:00:06]} 53. f4 {[%clk 0:00:14]}  Rb4 {[%clk 0:00:06]} 54. Kh4 {[%clk 0:00:15]}  h6 {[%clk 0:00:06]} 55. Kh5 {[%clk 0:00:15]}  Rxf4 {[%clk 0:00:06]} 56. Kxh6 {[%clk 0:00:16]}  Rh4# {[%clk 0:00:06]} 0-1


[Site "https://www.chess.com"]

[Event "Titled Tuesday Blitz April 25 Early 2023"]
[White "Kopczynski, Michal"]
[Black "Nery Junior, Jose Antonio"]
[WhiteFideId "1124200"]
[BlackFideId "2104822"]
[WhiteElo "2212"]
[BlackElo "2197"]
[Result "1-0"]
[Round "08"]
[TimeControl "180+2"]
[Date "2023.04.25"]
[WhiteClock "0:01:49"]
[BlackClock "0:00:02"]

1. e4 {[%clk 0:03:00]}  c5 {[%clk 0:02:56]} 2. d4 {[%clk 0:03:01]}  cxd4 {[%clk 0:02:56]} 3. c3 {[%clk 0:03:01]}  d3 {[%clk 0:02:57]} 4. Bxd3 {[%clk 0:03:01]}  Nc6 {[%clk 0:02:57]} 5. f4 {[%clk 0:03:02]}  d6 {[%clk 0:02:58]} 6. Nf3 {[%clk 0:03:02]}  e6 {[%clk 0:02:59]} 7. O-O {[%clk 0:03:03]}  a6 {[%clk 0:02:59]} 8. Kh1 {[%clk 0:03:03]}  b5 {[%clk 0:03:00]} 9. Qe1 {[%clk 0:03:04]}  Bb7 {[%clk 0:03:01]} 10. Be3 {[%clk 0:03:05]}  Qc7 {[%clk 0:03:01]} 11. Nbd2 {[%clk 0:03:05]}  Nf6 {[%clk 0:03:01]} 12. Rd1 {[%clk 0:03:05]}  Be7 {[%clk 0:03:01]} 13. Qg3 {[%clk 0:03:05]}  O-O-O {[%clk 0:02:39]} 14. a4 {[%clk 0:03:04]}  bxa4 {[%clk 0:02:33]} 15. Ra1 {[%clk 0:03:03]}  d5 {[%clk 0:02:27]} 16. e5 {[%clk 0:03:02]}  Ne4 {[%clk 0:02:17]} 17. Nxe4 {[%clk 0:03:01]}  dxe4 {[%clk 0:02:18]} 18. Bxe4 {[%clk 0:03:02]}  h5 {[%clk 0:02:16]} 19. Qf2 {[%clk 0:03:01]}  Rdg8 {[%clk 0:02:02]} 20. Rxa4 {[%clk 0:02:59]}  f6 {[%clk 0:01:57]} 21. Rfa1 {[%clk 0:02:53]}  fxe5 {[%clk 0:01:55]} 22. Rxa6 {[%clk 0:02:51]}  Bxa6 {[%clk 0:01:53]} 23. Rxa6 {[%clk 0:02:52]}  Nb8 {[%clk 0:01:50]} 24. Ra7 {[%clk 0:02:50]}  Qc4 {[%clk 0:01:41]} 25. Nxe5 {[%clk 0:02:49]}  Qxe4 {[%clk 0:01:29]} 26. Rxe7 {[%clk 0:02:49]}  Rd8 {[%clk 0:01:16]} 27. h4 {[%clk 0:02:40]}  Rhf8 {[%clk 0:01:06]} 28. Bb6 {[%clk 0:02:09]}  Rd1+ {[%clk 0:01:02]} 29. Kh2 {[%clk 0:02:09]}  Qxf4+ {[%clk 0:00:51]} 30. Qxf4 {[%clk 0:02:09]}  Rxf4 {[%clk 0:00:52]} 31. Rc7+ {[%clk 0:02:08]}  Kd8 {[%clk 0:00:45]} 32. Rc4+ {[%clk 0:02:09]}  Ke8 {[%clk 0:00:43]} 33. Rxf4 {[%clk 0:02:09]}  Rd5 {[%clk 0:00:41]} 34. Ng6 {[%clk 0:02:07]}  Nd7 {[%clk 0:00:35]} 35. Bd4 {[%clk 0:02:00]}  e5 {[%clk 0:00:35]} 36. Nxe5 {[%clk 0:02:00]}  Nf6 {[%clk 0:00:25]} 37. b4 {[%clk 0:01:56]}  Ke7 {[%clk 0:00:20]} 38. c4 {[%clk 0:01:49]}  Rd8 {[%clk 0:00:02]} 39. Nc6+ {[%clk 0:01:49]} 1-0


[Site "https://www.chess.com"]

[Event "Titled Tuesday Blitz April 25 Early 2023"]
[White "Jiganchine, Roman"]
[Black "Petrova, Irina"]
[WhiteFideId "2603667"]
[BlackFideId "14124122"]
[WhiteElo "2251"]
[BlackElo "2084"]
[Result "1-0"]
[Round "08"]
[TimeControl "180+2"]
[Date "2023.04.25"]
[WhiteClock "0:00:18"]
[BlackClock "0:00:01"]

1. e4 {[%clk 0:02:59]}  d6 {[%clk 0:03:00]} 2. d4 {[%clk 0:02:58]}  g6 {[%clk 0:03:01]} 3. Nc3 {[%clk 0:02:56]}  Bg7 {[%clk 0:03:01]} 4. Be3 {[%clk 0:02:53]}  a6 {[%clk 0:03:01]} 5. Nf3 {[%clk 0:02:49]}  b5 {[%clk 0:03:00]} 6. Bd3 {[%clk 0:02:49]}  Bb7 {[%clk 0:03:00]} 7. Qd2 {[%clk 0:02:48]}  Nd7 {[%clk 0:03:00]} 8. h4 {[%clk 0:02:43]}  h5 {[%clk 0:02:59]} 9. O-O-O {[%clk 0:02:40]}  e6 {[%clk 0:02:55]} 10. Kb1 {[%clk 0:02:39]}  Ngf6 {[%clk 0:02:49]} 11. Ng5 {[%clk 0:02:31]}  Ng4 {[%clk 0:02:43]} 12. e5 {[%clk 0:01:45]}  Bxg2 {[%clk 0:02:22]} 13. Rhg1 {[%clk 0:01:36]}  Bb7 {[%clk 0:02:20]} 14. Nxe6 {[%clk 0:01:33]}  fxe6 {[%clk 0:02:13]} 15. Bxg6+ {[%clk 0:01:29]}  Kf8 {[%clk 0:02:13]} 16. Bg5 {[%clk 0:01:26]}  Ngf6 {[%clk 0:01:58]} 17. f4 {[%clk 0:00:57]}  b4 {[%clk 0:01:48]} 18. Ne2 {[%clk 0:00:57]}  Bf3 {[%clk 0:01:41]} 19. Rdf1 {[%clk 0:00:55]}  Bg4 {[%clk 0:01:41]} 20. f5 {[%clk 0:00:50]}  dxe5 {[%clk 0:01:35]} 21. fxe6 {[%clk 0:00:45]}  Bxe6 {[%clk 0:01:30]} 22. Qxb4+ {[%clk 0:00:41]}  Qe7 {[%clk 0:01:21]} 23. Qd2 {[%clk 0:00:31]}  Kg8 {[%clk 0:00:47]} 24. dxe5 {[%clk 0:00:30]}  Bxa2+ {[%clk 0:00:35]} 25. Kxa2 {[%clk 0:00:25]}  Qxe5 {[%clk 0:00:36]} 26. Kb1 {[%clk 0:00:22]}  Rb8 {[%clk 0:00:30]} 27. Nc3 {[%clk 0:00:20]}  Rb6 {[%clk 0:00:05]} 28. Rf5 {[%clk 0:00:20]}  Qd6 {[%clk 0:00:02]} 29. Qe2 {[%clk 0:00:18]}  Nf8 {[%clk 0:00:01]} 30. Rd1 {[%clk 0:00:18]} 1-0


[Site "https://www.chess.com"]

[Event "Titled Tuesday Blitz April 25 Early 2023"]
[White "Levitan, Caleb Levi"]
[Black "littlepillow2010"]
[WhiteFideId "14332620"]
[WhiteElo "1963"]
[BlackElo "2350"]
[Result "0-1"]
[Round "08"]
[TimeControl "180+2"]
[Date "2023.04.25"]
[WhiteClock "0:00:02"]
[BlackClock "0:01:15"]

1. e4 {[%clk 0:03:00]}  c5 {[%clk 0:02:59]} 2. Nf3 {[%clk 0:03:00]}  d6 {[%clk 0:02:55]} 3. d4 {[%clk 0:02:59]}  cxd4 {[%clk 0:02:56]} 4. Qxd4 {[%clk 0:02:58]}  a6 {[%clk 0:02:56]} 5. c4 {[%clk 0:02:55]}  Nc6 {[%clk 0:02:56]} 6. Qe3 {[%clk 0:02:53]}  Nf6 {[%clk 0:02:56]} 7. Nc3 {[%clk 0:02:52]}  g6 {[%clk 0:02:55]} 8. Be2 {[%clk 0:02:47]}  Bg7 {[%clk 0:02:56]} 9. O-O {[%clk 0:02:44]}  O-O {[%clk 0:02:55]} 10. h3 {[%clk 0:02:42]}  Nd7 {[%clk 0:02:53]} 11. b3 {[%clk 0:02:32]}  Nc5 {[%clk 0:02:52]} 12. Bb2 {[%clk 0:02:32]}  Rb8 {[%clk 0:02:47]} 13. Rab1 {[%clk 0:02:23]}  f5 {[%clk 0:02:42]} 14. Rfd1 {[%clk 0:01:25]}  fxe4 {[%clk 0:02:37]} 15. Nxe4 {[%clk 0:01:25]}  Nxe4 {[%clk 0:02:35]} 16. Qxe4 {[%clk 0:01:16]}  Bf5 {[%clk 0:02:35]} 17. Qd5+ {[%clk 0:01:12]}  e6 {[%clk 0:02:33]} 18. Qd2 {[%clk 0:01:05]}  Bxb1 {[%clk 0:02:31]} 19. Bxg7 {[%clk 0:01:04]}  Kxg7 {[%clk 0:02:30]} 20. Rxb1 {[%clk 0:01:04]}  d5 {[%clk 0:02:08]} 21. cxd5 {[%clk 0:00:51]}  Qxd5 {[%clk 0:01:49]} 22. Qc3+ {[%clk 0:00:46]}  e5 {[%clk 0:01:48]} 23. Rd1 {[%clk 0:00:43]}  Qe6 {[%clk 0:01:46]} 24. Bc4 {[%clk 0:00:23]}  Qe7 {[%clk 0:01:44]} 25. Re1 {[%clk 0:00:17]}  Rfe8 {[%clk 0:01:36]} 26. Bd5 {[%clk 0:00:14]}  Qb4 {[%clk 0:01:36]} 27. Qe3 {[%clk 0:00:09]}  Nd4 {[%clk 0:01:29]} 28. Rd1 {[%clk 0:00:02]}  Rbd8 {[%clk 0:01:19]} 29. Nxd4 {[%clk 0:00:01]}  exd4 {[%clk 0:01:19]} 30. Qg5 {[%clk 0:00:02]}  Qc5 {[%clk 0:01:15]} 31. Bf3 {[%clk 0:00:01]}  Qxg5 {[%clk 0:01:14]} 32. Rc1 {[%clk 0:00:02]}  Qe5 {[%clk 0:01:15]} 0-1


[Site "https://www.chess.com"]